bitfinex-derivatives/quotes_SOLF0:USTF0_20260129
["timestamp","ask_amount","ask_price","bid_price","bid_amount"]
[1769727645231,6.75194735,117.59,117.54,10.45020978]
[1769727645432,6.75194735,117.58,117.54,10.45020978]
[1769727645634,10.44640978,117.6,117.54,10.45020978]
[1769727645930,6.75194735,117.59,117.54,10.45020978]
[1769727646129,6.75194735,117.58,117.54,10.45020978]
[1769727646330,10.44640978,117.6,117.54,10.45020978]
[1769727646543,6.75152286,117.59,117.54,10.45020978]
[1769727646733,6.75152286,117.58,117.54,10.45020978]
[1769727646928,10.44640978,117.6,117.54,10.45020978]
[1769727647130,6.75152286,117.59,117.54,10.45020978]
[1769727647331,6.75152286,117.58,117.54,10.45020978]
[1769727647633,10.44640978,117.6,117.54,10.45020978]
[1769727647937,6.75123779,117.59,117.54,10.45020978]
[1769727648132,6.75123779,117.58,117.54,10.45020978]
[1769727648330,7.6663,117.59,117.54,10.45020978]
[1769727648530,6.7511728,117.58,117.54,10.45020978]
[1769727648730,7.6663,117.59,117.54,10.45020978]
[1769727649035,6.7511728,117.58,117.54,10.45020978]
[1769727649235,7.6663,117.59,117.54,10.45020978]
[1769727649436,6.75167216,117.58,117.54,10.45020978]
[1769727649637,7.6663,117.59,117.54,10.45020978]
[1769727649935,6.75167216,117.58,117.54,10.45020978]
[1769727650139,7.6663,117.59,117.54,10.45020978]
[1769727650332,6.7532661,117.58,117.54,10.45020978]
[1769727650532,7.6663,117.59,117.54,10.45020978]
[1769727650733,6.7532661,117.58,117.54,10.45020978]
[1769727650934,7.6663,117.59,117.54,10.45020978]
[1769727651136,6.7532661,117.58,117.54,10.45020978]
[1769727651334,7.6663,117.59,117.53,28.63417391]
[1769727651536,6.75466258,117.58,117.53,28.63417391]
[1769727651738,6.75466258,117.57,117.53,28.63417391]
[1769727651940,7.6663,117.59,117.53,28.63417391]
[1769727652244,6.7550094,117.58,117.53,28.63417391]
[1769727652438,7.6663,117.59,117.53,28.63417391]
[1769727652645,6.75613246,117.58,117.53,28.63417391]
[1769727652940,7.6663,117.59,117.53,28.63417391]
[1769727653138,6.75612857,117.58,117.53,28.63417391]
[1769727653339,7.6663,117.59,117.53,28.63417391]
[1769727653540,6.75803392,117.58,117.53,28.63417391]
[1769727653741,7.6663,117.59,117.53,28.63417391]
[1769727654041,6.75803392,117.58,117.53,28.63417391]
[1769727654238,7.6663,117.59,117.53,28.63417391]
[1769727654434,6.76025738,117.58,117.53,28.63417391]
[1769727654635,7.6663,117.59,117.53,28.63417391]
[1769727654836,6.76025738,117.58,117.53,28.63417391]
[1769727655129,6.76242278,117.57,117.53,28.63417391]
[1769727655332,7.6663,117.59,117.53,28.63417391]
[1769727655532,6.76242278,117.58,117.53,28.63417391]
[1769727655732,7.6663,117.59,117.53,28.63417391]
[1769727655935,6.76242278,117.58,117.53,28.63417391]
[1769727656135,6.76496606,117.57,117.53,28.63417391]
[1769727656334,7.6663,117.59,117.53,28.63417391]
[1769727656529,6.76496606,117.58,117.53,28.63417391]
[1769727656741,6.76496606,117.57,117.53,28.63417391]
[1769727656934,7.6663,117.59,117.53,28.63417391]
[1769727657135,6.76496606,117.58,117.53,28.63417391]
[1769727657334,6.76496606,117.57,117.53,25.85346413]
[1769727657633,7.6663,117.59,117.53,25.85346413]
[1769727657829,6.77347418,117.58,117.51,18.18336413]
[1769727658038,129.94149439,117.6,117.51,18.18336413]
[1769727658039,9.55418396,117.57,117.51,20.96407391]
[1769727658239,6.77347418,117.56,117.51,18.18336413]
[1769727658441,6.77347418,117.55,117.51,18.18336413]
[1769727658736,6.77347418,117.54,117.51,18.18336413]
[1769727658942,7.6688,117.56,117.51,18.18336413]
[1769727659139,6.7753736,117.55,117.51,18.18336413]
[1769727659339,6.7753736,117.54,117.51,18.18336413]
[1769727659542,10.44950978,117.56,117.51,18.18336413]
[1769727659741,6.77402385,117.55,117.51,18.18336413]
[1769727659938,6.77402385,117.54,117.51,18.18336413]
[1769727660133,7.669,117.55,117.51,18.18336413]
[1769727660334,6.77455326,117.54,117.51,18.18336413]
[1769727660640,7.669,117.55,117.51,18.18336413]
[1769727660839,6.77466382,117.54,117.51,18.18336413]
[1769727661041,7.669,117.55,117.51,18.18336413]
[1769727661243,14.44497439,117.54,117.49,2.78070978]
[1769727661439,6.77321971,117.53,117.49,2.78070978]
[1769727661639,7.6697,117.54,117.49,2.78070978]
[1769727661840,6.77322616,117.53,117.49,2.78070978]
[1769727662041,7.6697,117.54,117.49,2.78070978]
[1769727662344,6.77388279,117.53,117.49,2.78070978]
[1769727662643,7.6697,117.54,117.49,2.78070978]
[1769727662939,6.77214172,117.53,117.49,2.78070978]
[1769727663137,7.6697,117.54,117.49,2.78070978]
[1769727663341,6.77123467,117.53,117.49,17.52297484]
[1769727663543,7.6697,117.54,117.49,17.52611226]
[1769727663742,6.77134518,117.53,117.49,17.52611226]
[1769727663943,7.6697,117.54,117.49,17.52611226]
[1769727664143,6.77134128,117.53,117.49,17.52611226]
[1769727664444,7.6697,117.54,117.49,17.52611226]
[1769727664637,6.77065844,117.53,117.49,17.52611226]
[1769727664837,7.6697,117.54,117.49,17.52611226]
[1769727665038,6.77065844,117.53,117.49,17.52611226]
[1769727665347,7.6697,117.54,117.49,17.52611226]
[1769727665535,6.77024515,117.53,117.49,17.52611226]
[1769727665739,7.6697,117.54,117.49,17.52611226]
[1769727665945,6.7702387,117.53,117.49,17.52611226]
[1769727666245,7.6697,117.54,117.49,14.74226506]
[1769727666446,6.77009705,117.53,117.49,14.74226506]
[1769727666646,7.6697,117.54,117.49,14.74226506]
[1769727666945,6.77009569,117.53,117.49,14.74226506]
[1769727667140,7.6697,117.54,117.49,14.74226506]
[1769727667340,6.7702184,117.53,117.49,14.74226506]
[1769727667542,7.6689,117.55,117.49,25.19881226]
[1769727667741,6.77022231,117.54,117.5,14.74226506]
[1769727667941,6.77022231,117.53,117.5,14.74226506]
[1769727668146,7.6689,117.55,117.5,14.74226506]
[1769727668446,6.770604,117.54,117.5,14.74226506]
[1769727668645,7.6689,117.55,117.5,14.74226506]
[1769727668946,6.7706157,117.54,117.5,14.74226506]
[1769727669146,7.6689,117.55,117.5,14.74226506]
[1769727669346,6.77126261,117.54,117.5,14.74226506]
[1769727669546,7.6689,117.55,117.5,14.74226506]
[1769727669841,6.77126261,117.54,117.5,14.74226506]
[1769727670041,7.6689,117.55,117.5,14.74226506]
[1769727670246,6.77202151,117.54,117.5,14.74226506]
[1769727670441,7.6689,117.55,117.5,14.74226506]
[1769727671044,7.6681,117.57,117.51,17.52611226]
[1769727671348,6.77061825,117.56,117.51,17.52611226]
[1769727671547,7.6681,117.57,117.51,17.52611226]
[1769727671743,6.77026912,117.56,117.51,17.52611226]
[1769727671941,7.6681,117.57,117.51,17.52611226]
[1769727672143,6.77026912,117.56,117.51,17.52611226]
[1769727672446,7.6681,117.57,117.52,2.7838472]
[1769727672641,6.77077021,117.56,117.52,2.7838472]
[1769727672847,7.6681,117.57,117.52,2.7838472]
[1769727673043,6.89436326,117.56,117.52,17.52611226]
[1769727673248,2.7838472,117.59,117.53,14.74226506]
[1769727673448,6.89415747,117.58,117.53,17.52611226]
[1769727673641,6.89415747,117.57,117.53,17.52611226]
[1769727673844,332.4908472,117.6,117.53,17.52611226]
[1769727674044,6.89381509,117.59,117.53,17.52611226]
[1769727674245,6.89381509,117.58,117.53,17.52611226]
[1769727674446,6.89381509,117.57,117.53,17.52611226]
[1769727674647,7.667,117.58,117.53,17.52611226]
[1769727674845,6.89426119,117.57,117.53,14.74226506]
[1769727675047,10.4508472,117.58,117.53,14.74226506]
[1769727675246,6.89420746,117.57,117.53,14.74226506]
[1769727675449,10.4508472,117.58,117.53,14.74226506]
[1769727675648,6.89455298,117.57,117.53,14.74226506]
[1769727675846,10.4508472,117.58,117.53,14.74226506]
[1769727676041,6.89455298,117.57,117.53,14.74226506]
[1769727676246,10.4508472,117.58,117.53,14.74226506]
[1769727676548,7.667,117.58,117.53,14.74226506]
[1769727676748,10.4508472,117.58,117.53,14.74226506]
[1769727677340,7.667,117.58,117.53,14.74226506]
[1769727677940,7.667,117.58,117.53,17.52611226]
[1769727678140,2.7838472,117.59,117.53,17.52611226]
[1769727678341,2.7838472,117.61,117.54,17.52611226]
[1769727678541,6.89365185,117.6,117.54,17.52611226]
[1769727678743,6.89365185,117.59,117.54,17.52611226]
[1769727678942,10.4488472,117.61,117.54,17.52611226]
[1769727679141,6.89324401,117.6,117.54,17.52611226]
[1769727679348,6.89324401,117.59,117.54,17.52611226]
[1769727679547,10.4488472,117.61,117.54,17.52611226]
[1769727679751,6.89207694,117.6,117.54,17.52611226]
[1769727679945,6.89207694,117.59,117.54,17.52611226]
[1769727680148,10.4488472,117.61,117.54,17.52611226]
[1769727680348,6.8909803,117.6,117.55,14.74226506]
[1769727680548,6.8909803,117.59,117.55,14.74226506]
[1769727680742,10.4488472,117.61,117.55,14.74226506]
[1769727680944,6.8909803,117.6,117.55,14.74226506]
[1769727681146,6.8909803,117.59,117.55,14.74226506]
[1769727681355,10.4488472,117.61,117.55,14.74226506]
[1769727681550,6.8899348,117.6,117.55,14.74226506]
[1769727681750,6.8899348,117.59,117.55,14.74226506]
[1769727681953,10.4488472,117.61,117.55,14.74226506]
[1769727682154,6.8899348,117.6,117.55,14.74226506]
[1769727682354,10.4488472,117.61,117.55,14.74226506]
[1769727682553,6.88895673,117.6,117.55,14.74226506]
[1769727682755,10.4488472,117.61,117.55,14.74226506]
[1769727682957,6.88895927,117.6,117.55,14.74226506]
[1769727683156,6.88895927,117.59,117.55,14.74226506]
[1769727683458,2.7838472,117.6,117.55,14.74226506]
[1769727683654,6.88870415,117.59,117.55,14.74226506]
[1769727683854,2.7838472,117.6,117.55,14.74226506]
[1769727684063,6.8885344,117.59,117.55,14.74226506]
[1769727684259,2.7838472,117.6,117.55,14.74226506]
[1769727684561,6.88801505,117.59,117.55,14.74226506]
[1769727684753,10.4488472,117.61,117.56,14.74226506]
[1769727685057,6.88767305,117.6,117.56,14.74226506]
[1769727685259,10.4488472,117.61,117.56,14.74226506]
[1769727685459,6.88689377,117.6,117.56,14.74226506]
[1769727685662,10.4488472,117.61,117.56,14.74226506]
[1769727685857,6.88689377,117.6,117.56,14.74226506]
[1769727686059,10.4488472,117.61,117.56,14.74226506]
[1769727686258,6.88662588,117.6,117.56,14.74226506]
[1769727686459,10.4488472,117.61,117.56,14.74226506]
[1769727686662,6.88619772,117.6,117.56,14.74226506]
[1769727686963,10.4488472,117.61,117.56,14.74226506]
[1769727687166,6.88619772,117.6,117.56,14.74226506]
[1769727687366,10.4488472,117.61,117.56,14.74226506]
[1769727687565,6.89701945,117.6,117.56,14.74226506]
[1769727687762,10.4488472,117.61,117.56,14.74226506]
[1769727688063,6.89701945,117.6,117.56,14.74226506]
[1769727688262,10.4488472,117.61,117.56,14.74226506]
[1769727688462,6.89634372,117.6,117.56,14.74226506]
[1769727688762,2.7838472,117.61,117.56,14.74226506]
[1769727688962,6.89634372,117.6,117.56,14.74226506]
[1769727689165,2.7838472,117.61,117.56,14.74226506]
[1769727689462,6.8956812,117.6,117.56,14.74226506]
[1769727689665,2.7838472,117.61,117.56,22.41046506]
[1769727689865,6.8956812,117.6,117.56,22.41046506]
[1769727690064,2.7838472,117.61,117.56,22.41046506]
[1769727690264,9.67915302,117.6,117.56,22.41046506]
[1769727690464,2.7838472,117.6,117.56,22.41046506]
[1769727692766,2.7838472,117.6,117.57,14.74226506]
[1769727692963,2.7838472,117.61,117.57,22.40986506]
[1769727693167,6.89372319,117.6,117.57,22.40986506]
[1769727693366,2.7838472,117.61,117.57,22.40986506]
[1769727700272,2.7838472,117.59,117.55,22.41076506]
[1769727700464,2.7838472,117.58,117.55,22.41076506]
[1769727701870,2.7838472,117.58,117.53,22.41196506]
[1769727702066,2.7838472,117.56,117.53,22.02954873]
[1769727703973,2.7838472,117.55,117.53,22.02954873]
[1769727704769,2.7838472,117.55,117.53,14.35984873]
[1769727705769,2.7838472,117.56,117.53,14.35984873]
[1769727708176,2.7838472,117.56,117.5,7.6721]
[1769727708578,2.7838472,117.55,117.5,7.6721]
[1769727709976,2.7838472,117.55,117.49,7.6728]
[1769727710180,2.7838472,117.55,117.5,7.47050189]
[1769727711674,7.6683,117.56,117.5,7.47050189]
[1769727711978,2.7838472,117.55,117.5,7.47050189]
[1769727712179,10.4527472,117.55,117.5,7.47050189]
[1769727712378,7.6689,117.55,117.5,7.47050189]
[1769727713574,10.4521472,117.56,117.5,7.47050189]
[1769727713768,7.6683,117.56,117.51,7.47050189]
[1769727715979,7.6683,117.56,117.52,7.84770548]
[1769727717779,11.83289888,117.57,117.52,7.84770548]
[1769727717981,6.96360512,117.56,117.52,7.84770548]
[1769727718181,11.83289888,117.57,117.52,7.84770548]
[1769727718382,6.96361296,117.56,117.52,7.84770548]
[1769727718577,11.83289888,117.57,117.52,7.84770548]
[1769727718777,6.96361296,117.56,117.52,7.84770548]
[1769727718976,11.83289888,117.57,117.52,7.84770548]
[1769727719177,6.96361304,117.56,117.52,7.84770548]
[1769727719482,11.83289888,117.57,117.52,7.84770548]
[1769727719681,6.96337421,117.56,117.52,7.84770548]
[1769727719876,11.83289888,117.57,117.52,7.84770548]
[1769727720082,6.96337421,117.56,117.52,7.84770548]
[1769727720382,11.83289888,117.57,117.52,7.84770548]
[1769727720581,6.96320432,117.56,117.52,7.84770548]
[1769727720877,11.83289888,117.57,117.52,7.84770548]
[1769727721086,6.96320038,117.56,117.52,7.84770548]
[1769727721377,11.83289888,117.57,117.52,7.84770548]
[1769727721378,7.6677,117.57,117.53,7.84770548]
[1769727721572,7.667,117.58,117.54,7.84770548]
[1769727721774,5.07512564,117.59,117.54,5.48e-06]
[1769727721972,6.9623693,117.58,117.54,2.78385268]
[1769727722182,18.67708337,117.63,117.57,2.7838472]
[1769727722377,6.96002211,117.62,117.57,2.7838472]
[1769727722578,15.61356711,117.63,117.57,2.7838472]
[1769727722781,6.95885962,117.62,117.57,2.7838472]
[1769727722980,15.61356711,117.63,117.57,2.7838472]
[1769727723175,6.95862524,117.62,117.57,2.7838472]
[1769727723379,15.61356711,117.63,117.57,2.7838472]
[1769727723582,6.95709057,117.62,117.57,2.7838472]
[1769727723881,15.61356711,117.63,117.58,7.84770548]
[1769727724081,6.95709057,117.62,117.58,7.84770548]
[1769727724278,15.61356711,117.63,117.58,7.84770548]
[1769727724481,6.95581932,117.62,117.58,7.84770548]
[1769727724778,15.61356711,117.63,117.58,7.84770548]
[1769727725085,6.95581932,117.62,117.58,7.84770548]
[1769727725287,7.94986711,117.63,117.58,7.84770548]
[1769727725486,6.95452995,117.62,117.58,7.84770548]
[1769727725682,7.94986711,117.63,117.58,7.84770548]
[1769727725888,6.95447428,117.62,117.58,7.84770548]
[1769727726086,7.94986711,117.63,117.58,7.84770548]
[1769727734798,7.94986711,117.65,117.6,7.84770548]
[1769727735895,10.72975117,117.65,117.6,7.84770548]
[1769727736902,10.72975117,117.65,117.61,7.84770548]
[1769727737204,7.94986711,117.65,117.61,7.84770548]
[1769727737598,7.94986711,117.67,117.62,7.84770548]
[1769727738099,226.66336906,117.71,117.65,7.84770548]
[1769727738100,2.77988406,117.7,117.65,7.84770548]
[1769727739405,10.72975117,117.7,117.65,7.84770548]
[1769727744010,10.72975117,117.68,117.63,7.84770548]
[1769727744206,2.77988406,117.67,117.63,7.84770548]
[1769727750914,18.39025117,117.68,117.63,7.84770548]
[1769727759128,9.46058642,117.67,117.63,7.84770548]
[1769727759327,12.24047048,117.67,117.61,19.98849218]
[1769727759530,19.90157048,117.67,117.62,9.54370812]
[1769727760016,9.46058642,117.66,117.62,9.54370812]
[1769727760224,19.90096299,117.66,117.6,17.20920812]
[1769727760421,2.77857657,117.65,117.6,17.20920812]
[1769727761229,2.77857657,117.65,117.6,9.54370812]
[1769727761420,19.90096299,117.66,117.6,2.77857657]
[1769727761620,19.90096299,117.66,117.61,9.54370812]
[1769727762832,7.6625,117.65,117.61,9.54370812]
[1769727763330,17.12238642,117.66,117.61,9.54370812]
[1769727763531,9.46058642,117.68,117.62,12.32228469]
[1769727763730,12.23916299,117.68,117.63,9.54370812]
[1769727764327,6.83274533,117.67,117.63,9.54370812]
[1769727764529,12.23916299,117.68,117.63,9.54370812]
[1769727764724,14.49418825,117.67,117.63,9.54370812]
[1769727764926,2.77857657,117.69,117.64,9.54370812]
[1769727765131,9.46058642,117.69,117.64,9.54370812]
[1769727765430,17.12098642,117.69,117.64,9.54370812]
[1769727767525,7.6604,117.68,117.64,9.54370812]
[1769727770235,7.6604,117.68,117.62,2.77857657]
[1769727770236,7.6611,117.67,117.62,12.32228469]
[1769727770428,7.6611,117.67,117.63,9.54370812]
[1769727770830,12.23916299,117.68,117.63,9.54370812]
[1769727771029,6.84015919,117.67,117.63,9.54370812]
[1769727771332,12.23916299,117.68,117.63,9.54370812]
[1769727771525,6.84122623,117.67,117.63,9.54370812]
[1769727771723,12.23916299,117.68,117.63,9.54370812]
[1769727771925,6.84122237,117.67,117.63,9.54370812]
[1769727772134,12.23916299,117.68,117.63,9.54370812]
[1769727772436,14.50232237,117.67,117.63,9.54370812]
[1769727772635,7.6611,117.67,117.63,9.54370812]
[1769727773236,17.12258642,117.66,117.61,9.54370812]
[1769727773438,12.23916299,117.66,117.61,9.54370812]
[1769727773937,7.6624,117.65,117.61,9.54370812]
[1769727775430,7.6632,117.64,117.61,9.54370812]
[1769727775738,9.94257334,117.62,117.57,10.01711444]
[1769727775940,7.6657,117.6,117.55,10.01711444]
[1769727776140,10.44427657,117.6,117.55,10.01711444]
[1769727776535,2.77857657,117.6,117.55,10.01711444]
[1769727777340,7.6664,117.59,117.55,10.01711444]
[1769727778439,12.72114991,117.59,117.53,2.77857657]
[1769727779044,9.94257334,117.59,117.53,2.77857657]
[1769727780445,7.6676,117.57,117.53,12.79569101]
[1769727782137,7.6676,117.57,117.53,10.01711444]
[1769727782840,20.38804991,117.59,117.53,10.01711444]
[1769727784648,7.667,117.58,117.53,10.01711444]
[1769727786150,7.667,117.58,117.53,12.79929464]
[1769727789453,7.6677,117.57,117.53,12.79929464]
[1769727791655,9.94257334,117.56,117.5,2.7821802]
[1769727791850,12.72475354,117.56,117.5,2.7821802]
[1769727792050,7.6696,117.54,117.5,2.7821802]
[1769727792255,7.6696,117.54,117.44,2.7821802]
[1769727792256,9.94257334,117.51,117.44,2.7821802]
[1769727792453,9.94257334,117.54,117.5,2.7821802]
[1769727793353,7.6695,117.55,117.51,2.7821802]
[1769727794351,7.6695,117.55,117.5,2.7821802]
[1769727796055,7.6704,117.53,117.5,8.57642582]
[1769727796254,10.85801747,117.5,117.41,142.8]
[1769727796449,2.7821802,117.48,117.42,2.7821802]
[1769727796648,2.7821802,117.48,117.35,289.7169]
[1769727796649,10.85801747,117.49,117.4,2.7821802]
[1769727796854,2.7821802,117.48,117.41,2.7821802]
[1769727797152,7.6748,117.46,117.41,2.7821802]
[1769727797558,2.7821802,117.46,117.4,2.7821802]
[1769727798151,7.6757,117.45,117.39,2.7821802]
[1769727798559,10.4578802,117.45,117.39,2.7821802]
[1769727798749,10.4578802,117.45,117.37,216.08]
[1769727798750,7.6762,117.44,117.37,216.08]
[1769727798957,7.6762,117.44,117.39,2.7821802]
[1769727799861,7.6762,117.44,117.37,216.08]
[1769727800060,7.6762,117.44,117.39,2.7821802]
[1769727800756,7.6768,117.43,117.39,2.7821802]
[1769727802252,7.6759,117.45,117.41,2.7821802]
[1769727802458,130.22621747,117.48,117.42,2.7821802]
[1769727802653,130.22621747,117.48,117.43,2.7821802]
[1769727802859,130.22621747,117.48,117.43,8.02e-05]
[1769727803563,7.6749,117.46,117.38,7.6798]
[1769727803869,7.6749,117.46,117.43,8.02e-05]
[1769727804560,7.6749,117.46,117.42,8.02e-05]
[1769727804758,21.31419767,117.48,117.41,2.7821802]
[1769727804963,13.64019767,117.47,117.37,217.56201776]
[1769727805264,13.64019767,117.47,117.41,2.7821802]
[1769727805652,7.6749,117.46,117.41,2.7821802]
[1769727805961,10.85801747,117.47,117.42,2.7821802]
[1769727806165,10.85801747,117.47,117.43,2.7821802]
[1769727809765,10.85801747,117.47,117.42,2.7821802]
[1769727811069,10.85801747,117.49,117.43,2.7821802]
[1769727811264,10.85801747,117.49,117.44,2.7821802]
[1769727811964,10.85801747,117.49,117.43,2.7821802]
[1769727812669,13.64019767,117.49,117.43,2.7821802]
[1769727813469,13.64019767,117.49,117.42,10.4593802]
[1769727815763,13.64019767,117.49,117.43,7.6767]
[1769727817664,13.64019767,117.47,117.4,2.7821802]
[1769727817869,13.64019767,117.46,117.4,2.7821802]
[1769727818266,13.64019767,117.46,117.4,7.678]
[1769727818769,13.64019767,117.45,117.38,2.7821802]
[1769727818972,2.7821802,117.44,117.38,2.7821802]
[1769727819271,13.64019767,117.45,117.38,2.7821802]
[1769727820571,7.6761,117.44,117.38,10.4620802]
[1769727821571,7.6761,117.44,117.38,7.6799]
[1769727821873,7.6761,117.44,117.38,10.4620802]
[1769727823273,21.31569767,117.45,117.38,10.4620802]
[1769727829073,10.85801747,117.44,117.39,10.4610802]
[1769727832972,10.85801747,117.48,117.42,2.7821802]
[1769727833273,10.85801747,117.48,117.44,2.7821802]
[1769727833669,13.64019767,117.5,117.44,10.4581802]
[1769727833867,10.85801747,117.5,117.45,2.7821802]
[1769727834876,10.85801747,117.5,117.44,2.7821802]
[1769727835377,10.85801747,117.5,117.45,7.6749]
[1769727838472,10.85801747,117.5,117.46,7.6747]
[1769727840385,13.64019767,117.52,117.47,7.6741]
[1769727840573,17.78614544,117.51,117.47,7.6741]
[1769727840776,10.85801747,117.51,117.47,7.6741]
[1769727841680,10.85801747,117.49,117.45,7.6748]
[1769727841977,13.64019767,117.49,117.43,2.7821802]
[1769727842282,10.85801747,117.48,117.42,2.7821802]
[1769727842484,10.85801747,117.47,117.42,2.7821802]
[1769727842879,10.85801747,117.47,117.42,7.6774]
[1769727843077,2.7821802,117.48,117.39,119.4548]
[1769727843078,10.85801747,117.45,117.39,2.7821802]
[1769727843478,10.85801747,117.45,117.4,7.6787]
[1769727843678,13.64019767,117.45,117.4,7.6787]
[1769727845887,13.64019767,117.44,117.38,10.4615802]
[1769727847590,13.64656973,117.44,117.38,10.46795226]
[1769727848086,13.64656973,117.44,117.39,7.6792]
[1769727848888,10.85801747,117.44,117.39,7.6792]
[1769727849491,10.85801747,117.44,117.39,10.46775226]
[1769727850190,10.85801747,117.42,117.37,9.16201776]
[1769727850392,10.85801747,117.42,117.37,2.78855226]
[1769727850593,2.78855226,117.4,117.36,339.88]
[1769727850793,13.64656973,117.4,117.36,339.88]
[1769727850985,13.64656973,117.4,117.35,7.6813]
[1769727851188,13.64656973,117.4,117.33,2.78855226]
[1769727851383,10.46735226,117.4,117.33,10.47135226]
[1769727851588,13.64656973,117.39,117.33,10.47135226]
[1769727851784,10.85801747,117.39,117.33,10.47135226]
[1769727853595,13.64656973,117.39,117.33,10.47135226]
[1769727855293,10.85801747,117.39,117.34,7.6821]
[1769727855496,10.85801747,117.39,117.33,2.78855226]
[1769727855794,10.85801747,117.39,117.35,2.78855226]
[1769727856302,10.85801747,117.39,117.35,10.47055226]
[1769727861706,10.85801747,117.39,117.35,7.682]
[1769727864307,10.85801747,117.36,117.31,6.53734469]
[1769727864603,10.85801747,117.36,117.31,3.74879243]
[1769727864901,10.85801747,117.36,117.31,11.43299243]
[1769727865407,10.85801747,117.36,117.33,2.78855226]
[1769727866406,10.85801747,117.36,117.33,10.47165226]
[1769727869605,10.85801747,117.36,117.33,7.6831]
[1769727869807,10.85801747,117.36,117.32,7.6839]
[1769727870109,10.85801747,117.36,117.31,3.74879243]
[1769727870309,10.85801747,117.35,117.31,3.74879243]
[1769727871408,10.85801747,117.35,117.31,11.43339243]
[1769727880320,10.85801747,117.35,117.31,3.74879243]
[1769727880914,10.85801747,117.34,117.31,3.74879243]
[1769727884020,10.85801747,117.34,117.31,6.53734469]
[1769727884421,10.85801747,117.34,117.31,14.22174469]
[1769727885121,10.85801747,117.34,117.31,6.53734469]
[1769727885824,10.85801747,117.34,117.31,3.74879243]
[1769727886018,10.85801747,117.34,117.28,2.78855226]
[1769727886322,10.85801747,117.34,117.27,2.78855226]
[1769727886323,8.98362125,117.33,117.27,2.78855226]
[1769727886517,8.98362125,117.31,117.26,2.78855226]
[1769727887219,8.98362125,117.33,117.28,2.78855226]
[1769727888426,8.98362125,117.32,117.28,2.78855226]
[1769727890121,8.98362125,117.32,117.29,2.78855226]
[1769727890724,8.98362125,117.34,117.31,2.78855226]
[1769727890925,10.67245964,117.38,117.26,119.5874]
[1769727890926,8.98362125,117.36,117.32,2.78855226]
[1769727891123,8.98362125,117.36,117.26,119.5874]
[1769727891321,15.85836222,117.35,117.31,2.78855226]
[1769727891524,8.98362125,117.35,117.31,2.78855226]
[1769727893028,7.6827,117.34,117.31,2.78855226]
[1769727893229,8.98362125,117.35,117.31,2.78855226]
[1769727893431,8.98362125,117.35,117.32,2.78855226]
[1769727894330,8.98362125,117.35,117.33,2.78855226]
[1769727895521,7.6805,117.38,117.33,2.78855226]
[1769727895732,6.8942852,117.37,117.33,2.78855226]
[1769727895933,119.4587,117.39,117.33,2.78855226]
[1769727896130,6.89445141,117.38,117.33,2.78855226]
[1769727896434,6.89445141,117.37,117.33,2.78855226]
[1769727896633,119.4587,117.39,117.33,2.78855226]
[1769727896835,6.89573423,117.38,117.33,2.78855226]
[1769727897034,6.89573423,117.37,117.33,2.78855226]
[1769727897235,119.4587,117.39,117.33,2.78855226]
[1769727897532,4.49181063,117.37,117.33,2.78855226]
[1769727898135,12.17251063,117.37,117.33,2.78855226]
[1769727898837,4.49181063,117.37,117.33,2.78855226]
[1769727899340,4.49181063,117.37,117.34,2.78855226]
[1769727900938,4.49181063,117.37,117.33,2.78855226]
[1769727901537,4.49181063,117.37,117.34,2.78855226]
[1769727902537,4.49181063,117.37,117.33,2.78855226]
[1769727902742,4.49181063,117.37,117.32,2.78855226]
[1769727903042,4.49181063,117.37,117.28,119.5671]
[1769727903043,6.91476882,117.36,117.33,2.78855226]
[1769727903342,4.49181063,117.37,117.33,2.78855226]
[1769727903543,11.40984112,117.36,117.33,2.78855226]
[1769727903744,4.49181063,117.36,117.33,2.78855226]
[1769727905739,4.49181063,117.38,117.35,2.78855226]
[1769727905942,7.88390738,117.41,117.36,2.78855226]
[1769727906141,7.88390738,117.43,117.4,2.78855226]
[1769727906339,2.78855226,117.43,117.36,2.78855226]
[1769727906544,10.67245964,117.43,117.36,2.78855226]
[1769727906746,7.88390738,117.42,117.36,2.78855226]
[1769727907247,10.67245964,117.42,117.35,5.49133739]
[1769727907547,18.34995964,117.42,117.35,13.17323739]
[1769727907949,3.59632859,117.41,117.35,13.17323739]
[1769727908547,3.59632859,117.41,117.37,2.78855226]
[1769727909649,3.59632859,117.41,117.37,2.78947772]
[1769727912551,3.59632859,117.41,117.37,10.47007772]
[1769727912752,3.59632859,117.41,117.38,2.78947772]
[1769727914156,3.59632859,117.41,117.37,10.47007772]
[1769727915164,3.59632859,117.41,117.36,5.49226285]
[1769727915657,3.59632859,117.41,117.37,2.78947772]
[1769727916050,3.59632859,117.41,117.36,5.49226285]
[1769727920263,3.59632859,117.41,117.36,13.17346285]
[1769727921064,3.59632859,117.4,117.34,10.38478513]
[1769727921268,3.59632859,117.4,117.34,13.17426285]
[1769727922762,3.59632859,117.39,117.34,13.17426285]
[1769727923666,3.59632859,117.39,117.35,7.682]
[1769727924665,3.59632859,117.41,117.36,13.17356285]